[Event "FIDE Women World Blitz 2021"]
[Site "Warsaw"]
[Date "2021.12.29"]
[Round "7.6"]
[White "Muzychuk, Mariya"]
[Black "Vaishali R"]
[Result "0-1"]
[ECO "B63"]
[WhiteElo "2536"]
[BlackElo "2405"]
[Annotator "ChessBase"]
[PlyCount "80"]
[EventDate "2021.12.29"]
[EventType "swiss"]
[EventCountry "POL"]
[Tiebreak "Cut1 Buchholz"]
[SourceTitle "playchess.com"]
[Source "ChessBase"]
[SourceQuality "1"]
[TimeControl "180+2"]

1. e4 {[%emt 0:00:01]} c5 {[%emt 0:00:02]} 2. Nf3 {[%emt 0:00:00]} Nc6 {
[%emt 0:00:01]} 3. d4 {[%emt 0:00:03]} cxd4 {[%emt 0:00:02]} 4. Nxd4 {[%emt 0:
00:01]} Nf6 {[%emt 0:00:01]} 5. Nc3 {[%emt 0:00:00]} d6 {[%emt 0:00:01]} 6. Bg5
{[%emt 0:00:01]} e6 {[%emt 0:00:02]} 7. Qd2 {[%emt 0:00:01]} a6 {[%emt 0:00:01]
} 8. O-O-O {[%emt 0:00:04]} Be7 {[%emt 0:00:00]} 9. f3 {[%emt 0:00:23]} Nxd4 {
[%emt 0:00:03]} 10. Qxd4 {[%emt 0:00:01]} O-O {[%emt 0:00:02]} 11. h4 {[%emt 0:
00:08]} b5 {[%emt 0:00:01]} 12. Be3 {[%emt 0:00:30]} Bb7 {[%emt 0:00:05]} 13.
h5 {[%emt 0:00:04]} h6 {[%emt 0:01:09]} 14. g4 {[%emt 0:00:09]} e5 {[%emt 0:00:
22]} 15. Qd2 {[%emt 0:00:06]} b4 {[%emt 0:00:01]} 16. Nd5 {[%emt 0:00:11]} Nxd5
{[%emt 0:00:05]} 17. exd5 {[%emt 0:00:01]} Bg5 {[%emt 0:00:11]} 18. Kb1 {
[%emt 0:00:55]} a5 {[%emt 0:00:13]} 19. Bg2 {[%emt 0:00:06]} f5 {[%emt 0:00:17]
} 20. f4 {[%emt 0:00:17]} exf4 {[%emt 0:00:10]} 21. Bxf4 {[%emt 0:00:00]} fxg4
{[%emt 0:00:06]} 22. Bxg5 {[%emt 0:00:03]} Qxg5 {[%emt 0:00:02]} 23. Qxg5 {
[%emt 0:00:07]} hxg5 {[%emt 0:00:01]} 24. h6 {[%emt 0:00:01]} g6 {[%emt 0:00:
11]} 25. Be4 {[%emt 0:00:01]} Kh7 {[%emt 0:00:04]} 26. Rde1 {[%emt 0:00:27]}
Rae8 {[%emt 0:00:04]} 27. c4 {[%emt 0:00:03]} bxc3 {[%emt 0:00:04]} 28. bxc3 {
[%emt 0:00:01]} Re5 {[%emt 0:00:05]} 29. c4 {[%emt 0:00:05]} Rfe8 {[%emt 0:00:
05]} 30. Bxg6+ {[%emt 0:00:05]} Kxg6 {[%emt 0:00:01]} 31. Rxe5 {[%emt 0:00:01]}
dxe5 {[%emt 0:00:03]} 32. h7 {[%emt 0:00:06]} Rh8 {[%emt 0:00:01]} 33. Re1 {
[%emt 0:00:02]} Rxh7 {[%emt 0:00:13]} 34. Rxe5 {[%emt 0:00:02]} g3 {[%emt 0:00:
03]} 35. Re2 {[%emt 0:00:02]} Rh1+ {[%emt 0:00:02]} 36. Kc2 {[%emt 0:00:00]}
Rh2 {[%emt 0:00:01]} 37. Kd3 {[%emt 0:00:00]} Rxe2 {[%emt 0:00:06]} 38. Kxe2 {
[%emt 0:00:01]} Ba6 {[%emt 0:00:01]} 39. Kf3 {[%emt 0:00:03]} Bxc4 {[%emt 0:00:
01]} 40. d6 {[%emt 0:00:01]} Kf6 {[%emt 0:00:05]} 0-1

[Event "FIDE Women World Blitz 2021"]
[Site "Warsaw"]
[Date "2021.12.29"]
[Round "7.6"]
[White "Zairbek kyzy, Begimai"]
[Black "Gil Quilez, Sonia"]
[Result "0-1"]
[ECO "B10"]
[WhiteElo "1701"]
[BlackElo "2122"]
[Annotator "NA"]
[PlyCount "86"]
[EventDate "2021.12.29"]
[EventType "swiss"]
[EventCountry "POL"]
[Tiebreak "Cut1 Buchholz"]
[SourceTitle "playchess.com"]
[Source "ChessBase"]
[SourceQuality "1"]
[TimeControl "180+2"]

1. e4 {[%emt 0:00:03]} c6 {[%emt 0:00:01]} 2. Nf3 {[%emt 0:00:03]} d5 {[%emt 0:
00:02]} 3. e5 {[%emt 0:00:00]} Bg4 {[%emt 0:00:13]} 4. d4 {[%emt 0:00:01]} e6 {
[%emt 0:00:03]} 5. c3 {[%emt 0:00:01]} Nd7 {[%emt 0:00:05]} 6. Be2 {[%emt 0:00:
01]} c5 {[%emt 0:00:01]} 7. O-O {[%emt 0:00:02]} Ne7 {[%emt 0:00:05]} 8. h3 {
[%emt 0:00:02]} Bh5 {[%emt 0:00:03]} 9. a4 {[%emt 0:00:11]} Nc6 {[%emt 0:00:06]
} 10. Na3 {[%emt 0:00:03]} a6 {[%emt 0:00:05]} 11. Be3 {[%emt 0:00:10]} cxd4 {
[%emt 0:00:08]} 12. cxd4 {[%emt 0:00:01]} Be7 {[%emt 0:00:04]} 13. Nh2 {
[%emt 0:00:13]} Bxe2 {[%emt 0:00:08]} 14. Qxe2 {[%emt 0:00:02]} O-O {[%emt 0:
00:02]} 15. f4 {[%emt 0:00:11]} f6 {[%emt 0:00:19]} 16. Nf3 {[%emt 0:00:06]}
fxe5 {[%emt 0:00:03]} 17. dxe5 {[%emt 0:00:02]} Nc5 {[%emt 0:00:06]} 18. Rad1 {
[%emt 0:00:55]} Ne4 {[%emt 0:00:02]} 19. Qe1 {[%emt 0:00:01]} Bb4 {[%emt 0:00:
07]} 20. Qh4 {[%emt 0:00:01]} Be7 {[%emt 0:00:24]} 21. Qg4 {[%emt 0:00:04]} Rf5
{[%emt 0:00:18]} 22. Ng5 {[%emt 0:00:11]} Bxg5 {[%emt 0:00:14]} 23. fxg5 {
[%emt 0:00:02]} Nxe5 {[%emt 0:00:04]} 24. Qh4 {[%emt 0:00:15]} Ng6 {[%emt 0:00:
03]} 25. Qg4 {[%emt 0:00:05]} Ne5 {[%emt 0:00:18]} 26. Qh4 {[%emt 0:00:01]} h6
{[%emt 0:00:05]} 27. Rxf5 {[%emt 0:00:01]} exf5 {[%emt 0:00:01]} 28. Qe1 {
[%emt 0:00:14]} hxg5 {[%emt 0:00:02]} 29. Nc2 {[%emt 0:00:06]} f4 {[%emt 0:00:
02]} 30. Bd4 {[%emt 0:00:03]} Nc6 {[%emt 0:00:06]} 31. Bc3 {[%emt 0:00:02]}
Qb6+ {[%emt 0:00:03]} 32. Kh2 {[%emt 0:00:04]} Rf8 {[%emt 0:00:04]} 33. Rxd5 {
[%emt 0:00:02]} Nf6 {[%emt 0:00:21]} 34. Rxg5 {[%emt 0:00:02]} f3 {[%emt 0:00:
08]} 35. Qe6+ {[%emt 0:00:01]} Kh7 {[%emt 0:00:03]} 36. Qf5+ {[%emt 0:00:00]}
Kg8 {[%emt 0:00:01]} 37. Bxf6 {[%emt 0:00:00]} Rxf6 {[%emt 0:00:01]} 38. Qxf6 {
[%emt 0:00:00]} Qc7+ {[%emt 0:00:03]} 39. g3 {[%emt 0:00:00]} Nd8 {[%emt 0:00:
06]} 40. Nd4 {[%emt 0:00:00]} Qd7 {[%emt 0:00:07]} 41. Qe5 {[%emt 0:00:00]} Nc6
{[%emt 0:00:02]} 42. Nxc6 {[%emt 0:00:00]} Qd2+ {[%emt 0:00:01]} 43. Kg1 {
[%emt 0:00:00]} Qg2# {[%emt 0:00:03]} 0-1

[Event "FIDE Women World Blitz 2021"]
[Site "Warsaw"]
[Date "2021.12.29"]
[Round "7.7"]
[White "Kamalidenova, Meruert"]
[Black "Gaponenko, Inna"]
[Result "1-0"]
[ECO "B06"]
[WhiteElo "2339"]
[BlackElo "2339"]
[Annotator "NA"]
[PlyCount "121"]
[EventDate "2021.12.29"]
[EventType "swiss"]
[EventCountry "POL"]
[Tiebreak "Cut1 Buchholz"]
[SourceTitle "playchess.com"]
[Source "ChessBase"]
[SourceQuality "1"]
[TimeControl "180+2"]

1. e4 {[%emt 0:00:01]} g6 {[%emt 0:00:00]} 2. d4 {[%emt 0:00:02]} Bg7 {[%emt 0:
00:01]} 3. Nc3 {[%emt 0:00:02]} d6 {[%emt 0:00:01]} 4. Be3 {[%emt 0:00:03]} a6
{[%emt 0:00:01]} 5. a4 {[%emt 0:00:08]} Nc6 {[%emt 0:00:04]} 6. Qd2 {[%emt 0:
00:05]} e5 {[%emt 0:00:08]} 7. d5 {[%emt 0:00:08]} Nce7 {[%emt 0:00:10]} 8. h4
{[%emt 0:00:07]} f5 {[%emt 0:00:03]} 9. exf5 {[%emt 0:00:06]} Nxf5 {[%emt 0:00:
03]} 10. Bg5 {[%emt 0:00:11]} Bf6 {[%emt 0:00:11]} 11. Nf3 {[%emt 0:00:13]} h6
{[%emt 0:00:07]} 12. Bxf6 Nxf6 {[%emt 0:00:01]} 13. O-O-O {[%emt 0:00:28]} Bd7
{[%emt 0:00:11]} 14. Kb1 {[%emt 0:00:03]} O-O {[%emt 0:00:50]} 15. Bd3 {
[%emt 0:00:09]} Kg7 {[%emt 0:00:03]} 16. h5 {[%emt 0:00:05]} g5 {[%emt 0:01:09]
} 17. Nxg5 {[%emt 0:00:10]} b5 {[%emt 0:00:00]} 18. Ne6+ {[%emt 0:00:10]} Bxe6
{[%emt 0:00:02]} 19. dxe6 {[%emt 0:00:01]} Nd4 {[%emt 0:00:04]} 20. Rh3 {
[%emt 0:00:06]} Rh8 {[%emt 0:00:05]} 21. Rg3+ {[%emt 0:00:06]} Kf8 {[%emt 0:00:
01]} 22. Ne4 {[%emt 0:00:05]} Nxh5 {[%emt 0:00:15]} 23. Rh3 {[%emt 0:00:05]}
Nf4 {[%emt 0:00:02]} 24. Rg3 {[%emt 0:00:08]} Ndxe6 {[%emt 0:00:02]} 25. Rf3 {
[%emt 0:00:15]} Nd4 {[%emt 0:00:01]} 26. Rxf4+ {[%emt 0:00:04]} exf4 {[%emt 0:
00:01]} 27. Qxf4+ {[%emt 0:00:01]} Ke7 {[%emt 0:00:08]} 28. Re1 {[%emt 0:00:08]
} Ne6 {[%emt 0:00:03]} 29. Qg4 {[%emt 0:00:05]} Qg8 {[%emt 0:00:04]} 30. Qh3 {
[%emt 0:00:05]} Rf8 {[%emt 0:00:02]} 31. Ng3 {[%emt 0:00:04]} Rf6 {[%emt 0:00:
06]} 32. Bf5 {[%emt 0:00:06]} Qf7 {[%emt 0:00:04]} 33. Bg4 {[%emt 0:00:04]} Re8
{[%emt 0:00:02]} 34. Nf5+ {[%emt 0:00:05]} Kd8 {[%emt 0:00:01]} 35. Bh5 {
[%emt 0:00:04]} Qf8 {[%emt 0:00:03]} 36. Bxe8 {[%emt 0:00:01]} Rxf5 {[%emt 0:
00:01]} 37. Rxe6 {[%emt 0:00:05]} Rxf2 {[%emt 0:00:03]} 38. Bc6 {[%emt 0:00:05]
} Rf1+ {[%emt 0:00:02]} 39. Ka2 {[%emt 0:00:01]} Qf7 {[%emt 0:00:01]} 40. Qb3 {
[%emt 0:00:01]} bxa4 {[%emt 0:00:01]} 41. Qc4 {[%emt 0:00:01]} Rf6 {[%emt 0:00:
02]} 42. Re8+ {[%emt 0:00:02]} Qxe8 {[%emt 0:00:02]} 43. Bxe8 {[%emt 0:00:01]}
Kxe8 {[%emt 0:00:01]} 44. Qxa4+ {[%emt 0:00:01]} Kd8 {[%emt 0:00:01]} 45. Qxa6
{[%emt 0:00:01]} Rg6 {[%emt 0:00:01]} 46. b4 {[%emt 0:00:03]} Kd7 {[%emt 0:00:
02]} 47. Qb5+ {[%emt 0:00:01]} Kd8 {[%emt 0:00:01]} 48. Qd5 {[%emt 0:00:02]}
Rg5 {[%emt 0:00:01]} 49. Qe4 {[%emt 0:00:01]} Kd7 {[%emt 0:00:02]} 50. Kb3 {
[%emt 0:00:01]} Kd8 {[%emt 0:00:01]} 51. c4 {[%emt 0:00:01]} Kd7 {[%emt 0:00:
00]} 52. b5 {[%emt 0:00:02]} Kd8 {[%emt 0:00:01]} 53. Kb4 {[%emt 0:00:01]} Kd7
{[%emt 0:00:01]} 54. Qe3 {[%emt 0:00:04]} Kd8 {[%emt 0:00:03]} 55. Qd2 {
[%emt 0:00:03]} Kd7 {[%emt 0:00:04]} 56. Qf4 {[%emt 0:00:01]} Rxg2 {[%emt 0:00:
07]} 57. Qxh6 {[%emt 0:00:04]} Re2 {[%emt 0:00:03]} 58. Qh3+ {[%emt 0:00:03]}
Kd8 {[%emt 0:00:03]} 59. Qh4+ {[%emt 0:00:01]} Ke8 {[%emt 0:00:02]} 60. Qh5+ {
[%emt 0:00:01]} Kd7 {[%emt 0:00:01]} 61. Qxe2 {[%emt 0:00:01]} 1-0

[Event "FIDE Women World Blitz 2021"]
[Site "Warsaw"]
[Date "2021.12.29"]
[Round "7.7"]
[White "Kubicka, Anna"]
[Black "Jakubowska, Anna"]
[Result "1/2-1/2"]
[ECO "B02"]
[WhiteElo "2273"]
[BlackElo "2106"]
[Annotator "NA"]
[PlyCount "96"]
[EventDate "2021.12.29"]
[EventType "swiss"]
[EventCountry "POL"]
[Tiebreak "Cut1 Buchholz"]
[SourceTitle "playchess.com"]
[Source "ChessBase"]
[SourceQuality "1"]
[TimeControl "180+2"]

1. e4 {[%emt 0:00:00]} Nf6 {[%emt 0:00:02]} 2. Nc3 {[%emt 0:00:02]} d5 {
[%emt 0:00:01]} 3. exd5 {[%emt 0:00:03]} Nxd5 {[%emt 0:00:02]} 4. Nge2 {
[%emt 0:00:05]} c6 {[%emt 0:00:18]} 5. Nxd5 {[%emt 0:00:02]} cxd5 {[%emt 0:00:
01]} 6. d4 {[%emt 0:00:08]} Nc6 {[%emt 0:00:04]} 7. c3 {[%emt 0:00:17]} Bf5 {
[%emt 0:00:05]} 8. Ng3 {[%emt 0:00:04]} Bg6 {[%emt 0:00:01]} 9. h4 {[%emt 0:00:
01]} h6 {[%emt 0:00:02]} 10. h5 {[%emt 0:00:01]} Bh7 {[%emt 0:00:03]} 11. Bd3 {
[%emt 0:00:03]} Bxd3 {[%emt 0:00:02]} 12. Qxd3 {[%emt 0:00:01]} e6 {[%emt 0:00:
02]} 13. Bf4 {[%emt 0:00:07]} Bd6 {[%emt 0:00:03]} 14. Bxd6 {[%emt 0:00:02]}
Qxd6 {[%emt 0:00:01]} 15. O-O {[%emt 0:00:13]} O-O {[%emt 0:00:07]} 16. f4 {
[%emt 0:00:03]} f6 {[%emt 0:00:47]} 17. Rae1 {[%emt 0:00:02]} Rfe8 {[%emt 0:00:
07]} 18. Qf3 {[%emt 0:00:19]} Na5 {[%emt 0:00:17]} 19. Qg4 {[%emt 0:00:12]} Nc4
{[%emt 0:00:04]} 20. Re2 {[%emt 0:00:03]} Re7 {[%emt 0:00:06]} 21. Rfe1 {
[%emt 0:00:03]} Rae8 {[%emt 0:00:02]} 22. Kh1 {[%emt 0:00:35]} a6 {[%emt 0:00:
00]} 23. Nf1 {[%emt 0:00:06]} b5 {[%emt 0:00:03]} 24. Nh2 {[%emt 0:00:02]} e5 {
[%emt 0:00:09]} 25. fxe5 {[%emt 0:00:06]} fxe5 {[%emt 0:00:01]} 26. dxe5 {
[%emt 0:00:11]} Rxe5 {[%emt 0:00:02]} 27. Rxe5 {[%emt 0:00:06]} Rxe5 {[%emt 0:
00:03]} 28. Rxe5 {[%emt 0:00:19]} Qxe5 {[%emt 0:00:01]} 29. Nf3 {[%emt 0:00:02]
} Qe4 {[%emt 0:00:15]} 30. Qc8+ {[%emt 0:00:23]} Kh7 {[%emt 0:00:01]} 31. b3 {
[%emt 0:00:02]} Ne3 {[%emt 0:00:10]} 32. Qxa6 {[%emt 0:00:05]} Qb1+ {[%emt 0:
00:06]} 33. Kh2 {[%emt 0:00:03]} Nf1+ {[%emt 0:00:03]} 34. Kg1 {[%emt 0:00:07]}
Ng3+ {[%emt 0:00:06]} 35. Kf2 {[%emt 0:00:05]} Ne4+ {[%emt 0:00:01]} 36. Ke3 {
[%emt 0:00:02]} Qc1+ {[%emt 0:00:04]} 37. Kd4 {[%emt 0:00:04]} Qxc3+ {[%emt 0:
00:06]} 38. Kxd5 {[%emt 0:00:01]} Nf6+ {[%emt 0:00:03]} 39. Kd6 {[%emt 0:00:04]
} Qd3+ {[%emt 0:00:07]} 40. Kc7 {[%emt 0:00:03]} Qd7+ {[%emt 0:00:03]} 41. Kb8
{[%emt 0:00:01]} Qd8+ {[%emt 0:00:15]} 42. Ka7 {[%emt 0:00:02]} Qc7+ {[%emt 0:
00:04]} 43. Qb7 {[%emt 0:00:01]} Qa5+ {[%emt 0:00:01]} 44. Qa6 {[%emt 0:00:02]}
Qc7+ {[%emt 0:00:01]} 45. Qb7 {[%emt 0:00:01]} Qa5+ {[%emt 0:00:02]} 46. Kb8 {
[%emt 0:00:04]} Qd8+ {[%emt 0:00:06]} 47. Ka7 {[%emt 0:00:02]} Qa5+ {[%emt 0:
00:03]} 48. Qa6 {[%emt 0:00:04]} Qc7+ {[%emt 0:00:02]} 1/2-1/2

[Event "FIDE Women World Blitz 2021"]
[Site "Warsaw"]
[Date "2021.12.29"]
[Round "7.8"]
[White "Bodnaruk, Anastasia"]
[Black "Buksa, Nataliya"]
[Result "1-0"]
[ECO "B23"]
[WhiteElo "2396"]
[BlackElo "2199"]
[Annotator "NA"]
[PlyCount "123"]
[EventDate "2021.12.29"]
[EventType "swiss"]
[EventCountry "POL"]
[Tiebreak "Cut1 Buchholz"]
[SourceTitle "playchess.com"]
[Source "ChessBase"]
[SourceQuality "1"]
[TimeControl "180+2"]

1. e4 {[%emt 0:00:01]} c5 {[%emt 0:00:00]} 2. Nc3 {[%emt 0:00:00]} Nc6 {
[%emt 0:00:01]} 3. Bb5 {[%emt 0:00:02]} Nd4 {[%emt 0:00:01]} 4. Bc4 {[%emt 0:
00:01]} e6 {[%emt 0:00:01]} 5. Nge2 {[%emt 0:00:01]} a6 {[%emt 0:00:01]} 6. a4
{[%emt 0:00:01]} d6 {[%emt 0:00:39]} 7. O-O {[%emt 0:00:08]} Nf6 {[%emt 0:00:
01]} 8. d3 {[%emt 0:00:01]} Be7 {[%emt 0:00:01]} 9. Nxd4 {[%emt 0:00:13]} cxd4
{[%emt 0:00:01]} 10. Ne2 {[%emt 0:00:01]} e5 {[%emt 0:00:26]} 11. c3 {[%emt 0:
00:04]} dxc3 {[%emt 0:00:02]} 12. Nxc3 {[%emt 0:00:08]} Be6 {[%emt 0:00:01]}
13. a5 {[%emt 0:00:04]} O-O {[%emt 0:00:05]} 14. Re1 {[%emt 0:00:05]} Nd7 {
[%emt 0:00:11]} 15. Nd5 {[%emt 0:00:06]} b5 {[%emt 0:00:10]} 16. Ba2 {[%emt 0:
00:12]} Nf6 {[%emt 0:00:04]} 17. Nb6 {[%emt 0:00:19]} Rb8 {[%emt 0:00:24]} 18.
d4 {[%emt 0:00:01]} Bxa2 {[%emt 0:00:03]} 19. Rxa2 {[%emt 0:00:01]} Qe8 {
[%emt 0:00:06]} 20. b3 {[%emt 0:00:34]} Rb7 {[%emt 0:00:14]} 21. Rc2 {[%emt 0:
00:05]} Qb8 {[%emt 0:00:02]} 22. Bg5 {[%emt 0:00:09]} h6 {[%emt 0:00:09]} 23.
dxe5 {[%emt 0:00:07]} hxg5 {[%emt 0:00:02]} 24. exf6 {[%emt 0:00:01]} Bxf6 {
[%emt 0:00:01]} 25. Nd5 {[%emt 0:00:04]} Be5 {[%emt 0:00:02]} 26. Qh5 {[%emt 0:
00:02]} Qd8 {[%emt 0:00:03]} 27. Re3 {[%emt 0:00:10]} g6 {[%emt 0:00:02]} 28.
Qe2 {[%emt 0:00:19]} Qxa5 {[%emt 0:00:05]} 29. g3 {[%emt 0:00:10]} Kg7 {
[%emt 0:00:02]} 30. Kg2 {[%emt 0:00:13]} Qd8 {[%emt 0:00:16]} 31. f4 {[%emt 0:
00:14]} gxf4 {[%emt 0:00:05]} 32. gxf4 {[%emt 0:00:00]} Bd4 {[%emt 0:00:00]}
33. Rd3 {[%emt 0:00:04]} Bf6 {[%emt 0:00:25]} 34. e5 {[%emt 0:00:01]} Bh4 {
[%emt 0:00:14]} 35. Qg4 {[%emt 0:00:16]} Rh8 {[%emt 0:00:02]} 36. Rcd2 {
[%emt 0:00:04]} dxe5 {[%emt 0:00:06]} 37. fxe5 {[%emt 0:00:01]} Qc8 {[%emt 0:
00:01]} 38. Qd4 {[%emt 0:00:04]} Kf8 {[%emt 0:00:05]} 39. e6 {[%emt 0:00:04]}
Rh7 {[%emt 0:00:01]} 40. e7+ {[%emt 0:00:01]} Bxe7 {[%emt 0:00:01]} 41. Qe4 {
[%emt 0:00:04]} Qf5 {[%emt 0:00:02]} 42. Qxf5 {[%emt 0:00:06]} gxf5 {[%emt 0:
00:01]} 43. Rf3 {[%emt 0:00:00]} Bd6 {[%emt 0:00:02]} 44. h3 {[%emt 0:00:02]}
Rg7+ {[%emt 0:00:03]} 45. Kf1 {[%emt 0:00:01]} Rd7 {[%emt 0:00:02]} 46. Rxf5 {
[%emt 0:00:00]} Bc5 {[%emt 0:00:03]} 47. Rd3 {[%emt 0:00:04]} Rg1+ {[%emt 0:00:
01]} 48. Ke2 {[%emt 0:00:01]} Rg2+ {[%emt 0:00:01]} 49. Kf3 {[%emt 0:00:02]}
Rf2+ {[%emt 0:00:02]} 50. Kg4 {[%emt 0:00:01]} Rg2+ {[%emt 0:00:06]} 51. Kf3 {
[%emt 0:00:01]} Rg1 {[%emt 0:00:01]} 52. h4 {[%emt 0:00:03]} Rd6 {[%emt 0:00:
01]} 53. h5 {[%emt 0:00:04]} Re6 {[%emt 0:00:01]} 54. Nf4 {[%emt 0:00:03]} Ree1
{[%emt 0:00:06]} 55. Rxc5 {[%emt 0:00:01]} Rgf1+ {[%emt 0:00:00]} 56. Kg3 {
[%emt 0:00:02]} Rg1+ {[%emt 0:00:02]} 57. Kf3 {[%emt 0:00:02]} Rgf1+ {[%emt 0:
00:00]} 58. Kg4 {[%emt 0:00:01]} Re4 {[%emt 0:00:02]} 59. Rf5 {[%emt 0:00:00]}
Ke7 {[%emt 0:00:01]} 60. Kg3 {[%emt 0:00:04]} a5 {[%emt 0:00:02]} 61. Nd5+ {
[%emt 0:00:02]} Ke6 {[%emt 0:00:02]} 62. Rxf1 {[%emt 0:00:01]} 1-0

[Event "FIDE Women World Blitz 2021"]
[Site "Warsaw"]
[Date "2021.12.29"]
[Round "7.8"]
[White "Rudzinska, Michalina"]
[Black "Beydullayeva, Govhar"]
[Result "0-1"]
[ECO "B96"]
[WhiteElo "1832"]
[BlackElo "2278"]
[Annotator "NA"]
[PlyCount "76"]
[EventDate "2021.12.29"]
[EventType "swiss"]
[EventCountry "POL"]
[Tiebreak "Cut1 Buchholz"]
[SourceTitle "playchess.com"]
[Source "ChessBase"]
[SourceQuality "1"]
[TimeControl "180+2"]

1. e4 {[%emt 0:00:01]} c5 {[%emt 0:00:00]} 2. Nf3 {[%emt 0:00:01]} d6 3. d4 {
[%emt 0:00:01]} cxd4 {[%emt 0:00:02]} 4. Nxd4 {[%emt 0:00:01]} Nf6 {[%emt 0:00:
00]} 5. Nc3 {[%emt 0:00:02]} a6 {[%emt 0:00:01]} 6. Bg5 {[%emt 0:00:03]} e6 {
[%emt 0:00:02]} 7. f4 {[%emt 0:00:01]} Nbd7 {[%emt 0:00:01]} 8. Qf3 {[%emt 0:
00:01]} Qc7 {[%emt 0:00:01]} 9. O-O-O {[%emt 0:00:02]} b5 {[%emt 0:00:03]} 10.
Bd3 {[%emt 0:00:05]} Bb7 {[%emt 0:00:01]} 11. Rhe1 {[%emt 0:00:01]} Qb6 {
[%emt 0:00:01]} 12. Nd5 {[%emt 0:00:06]} Qxd4 {[%emt 0:00:37]} 13. Bxf6 {
[%emt 0:00:02]} gxf6 {[%emt 0:00:13]} 14. Bxb5 {[%emt 0:00:02]} Qc5 {[%emt 0:
00:13]} 15. b4 {[%emt 0:00:03]} Qxb5 {[%emt 0:00:01]} 16. Nc7+ {[%emt 0:00:02]}
Ke7 {[%emt 0:00:09]} 17. Nxb5 {[%emt 0:00:01]} axb5 {[%emt 0:00:01]} 18. Qd3 {
[%emt 0:00:17]} Ra6 {[%emt 0:00:01]} 19. g4 {[%emt 0:00:07]} Bh6 {[%emt 0:00:
09]} 20. Qg3 {[%emt 0:00:26]} Rxa2 {[%emt 0:00:22]} 21. g5 {[%emt 0:00:07]} Bg7
{[%emt 0:00:01]} 22. f5 {[%emt 0:00:32]} Ne5 {[%emt 0:00:05]} 23. Rd3 {[%emt 0:
00:47]} Nxd3+ {[%emt 0:01:00]} 24. Qxd3 {[%emt 0:00:02]} Rc8 {[%emt 0:00:06]}
25. Qxb5 {[%emt 0:00:42]} Rcxc2+ {[%emt 0:00:11]} 26. Kd1 {[%emt 0:00:03]} Ba6
{[%emt 0:00:11]} 27. Qb6 {[%emt 0:00:02]} Rd2+ {[%emt 0:00:12]} 28. Kc1 {
[%emt 0:00:01]} Rac2+ {[%emt 0:00:02]} 29. Kb1 {[%emt 0:00:03]} Rb2+ {[%emt 0:
00:02]} 30. Kc1 {[%emt 0:00:03]} Rdc2+ {[%emt 0:00:08]} 31. Kd1 {[%emt 0:00:01]
} Bc8 {[%emt 0:00:04]} 32. Qa7+ {[%emt 0:00:07]} Bd7 {[%emt 0:00:01]} 33. g6 {
[%emt 0:00:08]} hxg6 {[%emt 0:00:02]} 34. fxg6 {[%emt 0:00:01]} fxg6 {[%emt 0:
00:00]} 35. Re3 {[%emt 0:00:03]} f5 {[%emt 0:00:04]} 36. Rd3 {[%emt 0:00:01]}
Rc6 {[%emt 0:00:04]} 37. Qb8 {[%emt 0:00:02]} Ra6 {[%emt 0:00:02]} 38. b5 {
[%emt 0:00:02]} Ra1# {[%emt 0:00:01]} 0-1

[Event "FIDE Women World Blitz 2021"]
[Site "Warsaw"]
[Date "2021.12.29"]
[Round "7.9"]
[White "Kurmangaliyeva, Liya"]
[Black "Parol, Pola"]
[Result "1-0"]
[ECO "D38"]
[WhiteElo "2222"]
[BlackElo "1823"]
[Annotator "NA"]
[PlyCount "50"]
[EventDate "2021.12.29"]
[EventType "swiss"]
[EventCountry "POL"]
[Tiebreak "Cut1 Buchholz"]
[SourceTitle "playchess.com"]
[Source "ChessBase"]
[SourceQuality "1"]
[TimeControl "180+2"]

1. d4 {[%emt 0:00:04]} Nf6 {[%emt 0:00:00]} 2. c4 {[%emt 0:00:02]} e6 {[%emt 0:
00:01]} 3. Nf3 {[%emt 0:00:02]} d5 {[%emt 0:00:01]} 4. Nc3 {[%emt 0:00:02]} Bb4
{[%emt 0:00:02]} 5. Bg5 {[%emt 0:00:06]} h6 {[%emt 0:00:06]} 6. Bd2 {[%emt 0:
00:02]} O-O {[%emt 0:00:04]} 7. g4 {[%emt 0:00:03]} Bxc3 {[%emt 0:00:23]} 8.
Bxc3 {[%emt 0:00:02]} Ne4 {[%emt 0:00:10]} 9. Qc2 {[%emt 0:00:04]} Nd7 {
[%emt 0:00:15]} 10. g5 {[%emt 0:00:31]} hxg5 {[%emt 0:00:11]} 11. h4 {[%emt 0:
00:05]} g4 {[%emt 0:00:09]} 12. Ng5 {[%emt 0:00:06]} Nxg5 {[%emt 0:00:50]} 13.
hxg5 {[%emt 0:00:03]} g6 {[%emt 0:00:01]} 14. Qd2 {[%emt 0:00:08]} Kg7 {
[%emt 0:00:04]} 15. Qf4 {[%emt 0:00:15]} Rh8 {[%emt 0:00:17]} 16. Rxh8 {
[%emt 0:00:07]} Qxh8 {[%emt 0:00:01]} 17. O-O-O {[%emt 0:00:19]} Qf8 {[%emt 0:
00:28]} 18. e4 {[%emt 0:00:08]} f6 {[%emt 0:00:13]} 19. Qxg4 {[%emt 0:00:15]}
fxg5 {[%emt 0:00:05]} 20. Qxg5 {[%emt 0:00:12]} Qf6 {[%emt 0:00:02]} 21. Qg3 {
[%emt 0:00:13]} c6 {[%emt 0:00:12]} 22. Bd3 {[%emt 0:00:02]} Nb6 {[%emt 0:00:
06]} 23. e5 {[%emt 0:00:06]} Qf7 {[%emt 0:00:03]} 24. Rg1 {[%emt 0:00:02]} Kf8
{[%emt 0:00:02]} 25. Bxg6 {[%emt 0:00:03]} Qg7 {[%emt 0:00:04]} 1-0